[Event "Late Titled Tuesday Blitz February 8 2022"]
[White "Coelho, Ramyres Santana"]
[Black "Ortiz Verdezoto, Anahi"]
[WhiteFideId "2120690"]
[BlackFideId "3614581"]
[WhiteElo "1888"]
[BlackElo "1785"]
[Result "0-1"]
[Round "02"]
[TimeControl "180+1"]
[Date "2022.02.09"]
[WhiteClock "0:00:40"]
[BlackClock "0:00:22"]

1. e4 {[%clk 0:02:59]}  e5 {[%clk 0:02:57]} 2. Nf3 {[%clk 0:02:59]}  Nc6 {[%clk 0:02:57]} 3. d4 {[%clk 0:02:59]}  exd4 {[%clk 0:01:43]} 4. Bc4 {[%clk 0:02:58]}  d6 {[%clk 0:01:43]} 5. Nxd4 {[%clk 0:02:58]}  Ne5 {[%clk 0:01:42]} 6. Be2 {[%clk 0:02:58]}  Nf6 {[%clk 0:01:43]} 7. Nc3 {[%clk 0:02:58]}  Be7 {[%clk 0:01:44]} 8. f4 {[%clk 0:02:58]}  Ng6 {[%clk 0:01:43]} 9. O-O {[%clk 0:02:57]}  O-O {[%clk 0:01:43]} 10. Be3 {[%clk 0:02:57]}  c6 {[%clk 0:01:43]} 11. g4 {[%clk 0:02:57]}  Qc7 {[%clk 0:01:43]} 12. g5 {[%clk 0:02:56]}  Nd7 {[%clk 0:01:43]} 13. Qe1 {[%clk 0:02:53]}  f6 {[%clk 0:01:43]} 14. h4 {[%clk 0:02:52]}  fxg5 {[%clk 0:01:42]} 15. hxg5 {[%clk 0:02:50]}  d5 {[%clk 0:01:42]} 16. Ne6 {[%clk 0:02:47]}  Qd6 {[%clk 0:01:41]} 17. Nxf8 {[%clk 0:02:47]}  Ngxf8 {[%clk 0:01:40]} 18. exd5 {[%clk 0:02:47]}  cxd5 {[%clk 0:01:41]} 19. Rd1 {[%clk 0:02:45]}  Nb6 {[%clk 0:01:15]} 20. Nb5 {[%clk 0:02:39]}  Qc6 {[%clk 0:01:13]} 21. Nd4 {[%clk 0:02:37]}  Qg6 {[%clk 0:01:13]} 22. Bd3 {[%clk 0:02:33]}  Qd6 {[%clk 0:01:12]} 23. Qf2 {[%clk 0:02:27]}  Bg4 {[%clk 0:01:10]} 24. Rde1 {[%clk 0:02:25]}  Nc4 {[%clk 0:01:09]} 25. Bc1 {[%clk 0:02:23]}  Qb6 {[%clk 0:01:07]} 26. Nf5 {[%clk 0:02:17]}  Bc5 {[%clk 0:01:07]} 27. Ne3 {[%clk 0:02:02]}  Bh3 {[%clk 0:01:06]} 28. Bxc4 {[%clk 0:01:59]}  dxc4 {[%clk 0:01:06]} 29. c3 {[%clk 0:01:58]}  Bxf1 {[%clk 0:01:05]} 30. Qxf1 {[%clk 0:01:58]}  Re8 {[%clk 0:01:05]} 31. Qxc4+ {[%clk 0:01:57]}  Kh8 {[%clk 0:01:05]} 32. b4 {[%clk 0:01:53]}  Bxe3+ {[%clk 0:01:03]} 33. Bxe3 {[%clk 0:01:49]}  Rxe3 {[%clk 0:01:03]} 34. Rxe3 {[%clk 0:01:49]}  Qxe3+ {[%clk 0:01:04]} 35. Kg2 {[%clk 0:01:49]}  Qd2+ {[%clk 0:01:00]} 36. Kg3 {[%clk 0:01:48]}  Qd7 {[%clk 0:00:57]} 37. b5 {[%clk 0:01:38]}  Ng6 {[%clk 0:00:55]} 38. a4 {[%clk 0:01:32]}  h5 {[%clk 0:00:48]} 39. gxh6 {[%clk 0:01:23]}  Qe7 {[%clk 0:00:31]} 40. Qc8+ {[%clk 0:01:18]}  Kh7 {[%clk 0:00:31]} 41. hxg7 {[%clk 0:01:16]}  Kxg7 {[%clk 0:00:27]} 42. f5 {[%clk 0:01:08]}  Qg5+ {[%clk 0:00:25]} 43. Kf2 {[%clk 0:01:07]}  Qf4+ {[%clk 0:00:25]} 44. Ke2 {[%clk 0:01:07]}  Qe4+ {[%clk 0:00:25]} 45. Kd2 {[%clk 0:01:06]}  Nf4 {[%clk 0:00:25]} 46. Qd7+ {[%clk 0:01:04]}  Kf6 {[%clk 0:00:25]} 47. Qd6+ {[%clk 0:01:00]}  Kxf5 {[%clk 0:00:25]} 48. Qd7+ {[%clk 0:00:59]}  Kg5 {[%clk 0:00:25]} 49. Qd8+ {[%clk 0:00:56]}  Kg4 {[%clk 0:00:25]} 50. Qg8+ {[%clk 0:00:49]}  Kf3 {[%clk 0:00:25]} 51. Qf8 {[%clk 0:00:41]}  Qd3+ {[%clk 0:00:23]} 52. Kc1 {[%clk 0:00:40]}  Qxc3+ {[%clk 0:00:24]} 53. Kb1 {[%clk 0:00:40]}  Qb3+ {[%clk 0:00:23]} 54. Kc1 {[%clk 0:00:40]}  Qxa4 {[%clk 0:00:22]} 55. Qf5 {[%clk 0:00:39]}  Qc4+ {[%clk 0:00:22]} 56. Kb1 {[%clk 0:00:38]}  Qd3+ {[%clk 0:00:22]} 57. Qxd3+ {[%clk 0:00:38]}  Nxd3 {[%clk 0:00:23]} 58. Kc2 {[%clk 0:00:37]}  Ke4 {[%clk 0:00:23]} 59. b6 {[%clk 0:00:37]}  axb6 {[%clk 0:00:23]} 60. Kb3 {[%clk 0:00:37]}  Ne5 {[%clk 0:00:22]} 61. Kb4 {[%clk 0:00:37]}  Nd7 {[%clk 0:00:23]} 62. Kb5 {[%clk 0:00:38]}  Kd5 {[%clk 0:00:23]} 63. Ka4 {[%clk 0:00:38]}  Kc6 {[%clk 0:00:24]} 64. Kb4 {[%clk 0:00:38]}  b5 {[%clk 0:00:25]} 65. Ka5 {[%clk 0:00:39]}  Nb6 {[%clk 0:00:26]} 66. Kb4 {[%clk 0:00:39]}  Nd5+ {[%clk 0:00:27]} 67. Ka5 {[%clk 0:00:40]}  b4 {[%clk 0:00:25]} 68. Ka4 {[%clk 0:00:40]}  Kc5 {[%clk 0:00:26]} 69. Kb3 {[%clk 0:00:40]}  b6 {[%clk 0:00:26]} 70. Ka4 {[%clk 0:00:40]}  b5+ {[%clk 0:00:24]} 71. Ka5 {[%clk 0:00:40]}  b3 {[%clk 0:00:22]} 0-1


[Site "https://www.chess.com"]

[Event "Late Titled Tuesday Blitz February 8 2022"]
[White "Cunha, Lucas Aguiar"]
[Black "Haussernot, Cecile"]
[WhiteFideId "2125404"]
[BlackFideId "601632"]
[WhiteElo "2361"]
[BlackElo "2288"]
[Result "1-0"]
[Round "02"]
[TimeControl "180+1"]
[Date "2022.02.09"]
[WhiteClock "0:01:18"]
[BlackClock "0:00:17"]

1. e4 {[%clk 0:03:00]}  c5 {[%clk 0:02:59]} 2. Nf3 {[%clk 0:03:01]}  d6 {[%clk 0:02:59]} 3. d4 {[%clk 0:03:01]}  cxd4 {[%clk 0:02:59]} 4. Qxd4 {[%clk 0:03:02]}  a6 {[%clk 0:02:59]} 5. c4 {[%clk 0:03:01]}  Nc6 {[%clk 0:02:58]} 6. Qd2 {[%clk 0:03:01]}  Nf6 {[%clk 0:02:58]} 7. Nc3 {[%clk 0:03:01]}  g6 {[%clk 0:02:57]} 8. b3 {[%clk 0:03:00]}  Bg7 {[%clk 0:02:56]} 9. Bb2 {[%clk 0:03:01]}  O-O {[%clk 0:02:57]} 10. h3 {[%clk 0:03:01]}  Bd7 {[%clk 0:02:53]} 11. Be2 {[%clk 0:03:00]}  Qa5 {[%clk 0:02:50]} 12. Rb1 {[%clk 0:03:00]}  Rac8 {[%clk 0:02:45]} 13. a3 {[%clk 0:02:59]}  b5 {[%clk 0:02:41]} 14. b4 {[%clk 0:02:55]}  Qb6 {[%clk 0:02:38]} 15. c5 {[%clk 0:02:25]}  dxc5 {[%clk 0:02:11]} 16. e5 {[%clk 0:02:25]}  cxb4 {[%clk 0:02:11]} 17. exf6 {[%clk 0:02:23]}  bxc3 {[%clk 0:02:12]} 18. Bxc3 {[%clk 0:02:21]}  Rfd8 {[%clk 0:01:59]} 19. fxg7 {[%clk 0:02:12]}  Bf5 {[%clk 0:01:59]} 20. Qh6 {[%clk 0:02:02]}  g5 {[%clk 0:01:24]} 21. Rc1 {[%clk 0:01:51]}  Rd6 {[%clk 0:00:53]} 22. Qxg5 {[%clk 0:01:49]}  Bd3 {[%clk 0:00:51]} 23. Bxd3 {[%clk 0:01:43]}  Rxd3 {[%clk 0:00:49]} 24. O-O {[%clk 0:01:44]}  f6 {[%clk 0:00:47]} 25. Qf5 {[%clk 0:01:42]}  Rcd8 {[%clk 0:00:48]} 26. Qe6+ {[%clk 0:01:28]}  Kxg7 {[%clk 0:00:48]} 27. Bb4 {[%clk 0:01:27]}  Rxf3 {[%clk 0:00:26]} 28. gxf3 {[%clk 0:01:20]}  Rg8 {[%clk 0:00:19]} 29. Rxc6 {[%clk 0:01:18]}  Kh8+ {[%clk 0:00:17]} 30. Qxg8+ {[%clk 0:01:18]} 1-0


[Site "https://www.chess.com"]

[Event "Late Titled Tuesday Blitz February 8 2022"]
[White "Daggupati, Balaji"]
[Black "Quirke, Jeffrey"]
[WhiteFideId "2090759"]
[BlackFideId "2013029"]
[WhiteElo "2722"]
[BlackElo "2252"]
[Result "1-0"]
[Round "02"]
[TimeControl "180+1"]
[Date "2022.02.09"]
[WhiteClock "0:01:05"]
[BlackClock "0:00:16"]

1. e4 {[%clk 0:03:00]}  c6 {[%clk 0:02:59]} 2. d4 {[%clk 0:03:00]}  d5 {[%clk 0:03:00]} 3. Nc3 {[%clk 0:03:00]}  dxe4 {[%clk 0:03:00]} 4. Nxe4 {[%clk 0:03:01]}  Bf5 {[%clk 0:02:59]} 5. Ng3 {[%clk 0:03:01]}  Bg6 {[%clk 0:03:00]} 6. h4 {[%clk 0:03:01]}  h6 {[%clk 0:02:59]} 7. Nf3 {[%clk 0:03:01]}  e6 {[%clk 0:02:59]} 8. Ne5 {[%clk 0:03:01]}  Bh7 {[%clk 0:02:59]} 9. Bd3 {[%clk 0:03:01]}  Bxd3 {[%clk 0:02:59]} 10. Qxd3 {[%clk 0:03:02]}  Nd7 {[%clk 0:02:58]} 11. f4 {[%clk 0:02:59]}  Be7 {[%clk 0:02:45]} 12. Bd2 {[%clk 0:02:59]}  Nxe5 {[%clk 0:02:44]} 13. fxe5 {[%clk 0:02:58]}  Bxh4 {[%clk 0:02:44]} 14. O-O-O {[%clk 0:02:58]}  Bxg3 {[%clk 0:02:34]} 15. Qxg3 {[%clk 0:02:59]}  Ne7 {[%clk 0:02:33]} 16. Qxg7 {[%clk 0:02:51]}  Rg8 {[%clk 0:02:33]} 17. Qh7 {[%clk 0:02:26]}  Qd5 {[%clk 0:02:29]} 18. Kb1 {[%clk 0:02:22]}  O-O-O {[%clk 0:02:22]} 19. Qxf7 {[%clk 0:02:16]}  Nf5 {[%clk 0:01:30]} 20. Bb4 {[%clk 0:02:03]}  Rxg2 {[%clk 0:01:17]} 21. Bc5 {[%clk 0:01:36]}  b6 {[%clk 0:00:41]} 22. Bb4 {[%clk 0:01:15]}  Rd7 {[%clk 0:00:38]} 23. Qe8+ {[%clk 0:01:12]}  Kb7 {[%clk 0:00:28]} 24. Bd6 {[%clk 0:01:07]}  Nxd6 {[%clk 0:00:17]} 25. Qxd7+ {[%clk 0:01:06]}  Ka6 {[%clk 0:00:16]} 26. Qxd6 {[%clk 0:01:05]} 1-0


[Site "https://www.chess.com"]

[Event "Late Titled Tuesday Blitz February 8 2022"]
[White "Debray, Christopher"]
[Black "Papasimakopoulos, Alexandros"]
[WhiteFideId "630810"]
[BlackFideId "4244125"]
[WhiteElo "2369"]
[BlackElo "2340"]
[Result "0-1"]
[Round "02"]
[TimeControl "180+1"]
[Date "2022.02.09"]
[WhiteClock "0:00:35"]
[BlackClock "0:00:55"]

1. e4 {[%clk 0:03:00]}  e6 {[%clk 0:02:49]} 2. d4 {[%clk 0:03:00]}  d5 {[%clk 0:02:49]} 3. Nc3 {[%clk 0:03:01]}  Bb4 {[%clk 0:02:49]} 4. Ne2 {[%clk 0:03:00]}  Nc6 {[%clk 0:02:40]} 5. a3 {[%clk 0:03:00]}  Ba5 {[%clk 0:02:39]} 6. b4 {[%clk 0:02:59]}  Bb6 {[%clk 0:02:39]} 7. Bb2 {[%clk 0:02:59]}  Nge7 {[%clk 0:02:39]} 8. g3 {[%clk 0:02:56]}  e5 {[%clk 0:02:34]} 9. dxe5 {[%clk 0:02:45]}  Nxe5 {[%clk 0:02:34]} 10. Bg2 {[%clk 0:02:36]}  Nc4 {[%clk 0:02:10]} 11. Bc1 {[%clk 0:02:27]}  Bg4 {[%clk 0:01:59]} 12. O-O {[%clk 0:02:02]}  dxe4 {[%clk 0:01:43]} 13. Bxe4 {[%clk 0:01:50]}  c6 {[%clk 0:01:42]} 14. Bg2 {[%clk 0:01:18]}  O-O {[%clk 0:01:35]} 15. h3 {[%clk 0:01:18]}  Bh5 {[%clk 0:01:34]} 16. g4 {[%clk 0:01:17]}  Bg6 {[%clk 0:01:35]} 17. Nf4 {[%clk 0:01:07]}  Bd4 {[%clk 0:01:34]} 18. Nxg6 {[%clk 0:00:59]}  Nxg6 {[%clk 0:01:29]} 19. Bd2 {[%clk 0:00:44]}  Nh4 {[%clk 0:01:18]} 20. Ra2 {[%clk 0:00:34]}  Nxg2 {[%clk 0:00:56]} 21. Kxg2 {[%clk 0:00:34]}  Nxd2 {[%clk 0:00:55]} 22. Qxd2 {[%clk 0:00:35]}  Bxc3 {[%clk 0:00:56]} 23. Qxc3 {[%clk 0:00:35]}  Qd5+ {[%clk 0:00:55]} 0-1


[Site "https://www.chess.com"]

[Event "Late Titled Tuesday Blitz February 8 2022"]
[White "Derraugh, Geordie"]
[Black "Guz, Ari"]
[WhiteFideId "2603950"]
[BlackFideId "2825759"]
[WhiteElo "2116"]
[BlackElo "1913"]
[Result "0-1"]
[Round "02"]
[TimeControl "180+1"]
[Date "2022.02.09"]
[WhiteClock "0:00:04"]
[BlackClock "0:00:18"]

1. e4 {[%clk 0:03:00]}  g6 {[%clk 0:02:54]} 2. d4 {[%clk 0:03:00]}  c6 {[%clk 0:02:55]} 3. c4 {[%clk 0:02:59]}  d5 {[%clk 0:02:54]} 4. exd5 {[%clk 0:02:58]}  cxd5 {[%clk 0:02:55]} 5. Nc3 {[%clk 0:02:58]}  Nf6 {[%clk 0:02:55]} 6. Nf3 {[%clk 0:02:59]}  Bg7 {[%clk 0:02:56]} 7. h3 {[%clk 0:02:58]}  O-O {[%clk 0:02:56]} 8. Be2 {[%clk 0:02:59]}  dxc4 {[%clk 0:02:56]} 9. Bxc4 {[%clk 0:02:58]}  a6 {[%clk 0:02:57]} 10. O-O {[%clk 0:02:58]}  b5 {[%clk 0:02:57]} 11. Be2 {[%clk 0:02:57]}  Bb7 {[%clk 0:02:57]} 12. Bf4 {[%clk 0:02:56]}  Nc6 {[%clk 0:02:54]} 13. Rc1 {[%clk 0:02:56]}  Nb4 {[%clk 0:02:51]} 14. Ne5 {[%clk 0:02:53]}  Nbd5 {[%clk 0:02:50]} 15. Bg3 {[%clk 0:02:52]}  Rc8 {[%clk 0:02:43]} 16. Re1 {[%clk 0:02:52]}  e6 {[%clk 0:02:37]} 17. Bf3 {[%clk 0:02:51]}  Nxc3 {[%clk 0:02:19]} 18. bxc3 {[%clk 0:02:51]}  Bxf3 {[%clk 0:02:19]} 19. Qxf3 {[%clk 0:02:52]}  Qa5 {[%clk 0:02:16]} 20. Nc6 {[%clk 0:02:15]}  Qxa2 {[%clk 0:01:53]} 21. Ne7+ {[%clk 0:02:14]}  Kh8 {[%clk 0:01:53]} 22. Nxc8 {[%clk 0:02:15]}  Rxc8 {[%clk 0:01:53]} 23. Be5 {[%clk 0:02:11]}  Nd7 {[%clk 0:01:29]} 24. Qxf7 {[%clk 0:02:09]}  Nxe5 {[%clk 0:01:28]} 25. Rxe5 {[%clk 0:01:48]}  Rf8 {[%clk 0:01:21]} 26. Qxe6 {[%clk 0:01:48]}  Qxf2+ {[%clk 0:01:21]} 27. Kh1 {[%clk 0:01:46]}  Bxe5 {[%clk 0:01:18]} 28. Qxe5+ {[%clk 0:01:47]}  Qf6 {[%clk 0:01:18]} 29. Qxf6+ {[%clk 0:00:57]}  Rxf6 {[%clk 0:01:18]} 30. c4 {[%clk 0:00:53]}  Rd6 {[%clk 0:00:58]} 31. cxb5 {[%clk 0:00:36]}  axb5 {[%clk 0:00:57]} 32. Rb1 {[%clk 0:00:24]}  Rb6 {[%clk 0:00:54]} 33. Rb4 {[%clk 0:00:20]}  Kg7 {[%clk 0:00:54]} 34. Kg1 {[%clk 0:00:21]}  Kf7 {[%clk 0:00:54]} 35. Kf2 {[%clk 0:00:21]}  Ke6 {[%clk 0:00:55]} 36. Ke3 {[%clk 0:00:22]}  Kd5 {[%clk 0:00:55]} 37. Kd3 {[%clk 0:00:20]}  Kc6 {[%clk 0:00:56]} 38. Rb2 {[%clk 0:00:19]}  Ra6 {[%clk 0:00:56]} 39. Rf2 {[%clk 0:00:19]}  Kd5 {[%clk 0:00:52]} 40. Rf7 {[%clk 0:00:12]}  Ra3+ {[%clk 0:00:52]} 41. Ke2 {[%clk 0:00:12]}  Ra2+ {[%clk 0:00:52]} 42. Kf3 {[%clk 0:00:12]}  Kxd4 {[%clk 0:00:51]} 43. Rxh7 {[%clk 0:00:12]}  b4 {[%clk 0:00:49]} 44. Rb7 {[%clk 0:00:11]}  Kc5 {[%clk 0:00:44]} 45. g4 {[%clk 0:00:11]}  Ra3+ {[%clk 0:00:42]} 46. Kg2 {[%clk 0:00:11]}  Ra6 {[%clk 0:00:42]} 47. h4 {[%clk 0:00:06]}  Rb6 {[%clk 0:00:42]} 48. Rf7 {[%clk 0:00:05]}  b3 {[%clk 0:00:41]} 49. Rf1 {[%clk 0:00:05]}  b2 {[%clk 0:00:42]} 50. Rb1 {[%clk 0:00:06]}  Kd4 {[%clk 0:00:41]} 51. Kf3 {[%clk 0:00:04]}  Ke5 {[%clk 0:00:41]} 52. h5 {[%clk 0:00:04]}  g5 {[%clk 0:00:40]} 53. Ke3 {[%clk 0:00:03]}  Rb4 {[%clk 0:00:29]} 54. h6 {[%clk 0:00:02]}  Rb7 {[%clk 0:00:30]} 55. Kd3 {[%clk 0:00:01]}  Kf4 {[%clk 0:00:30]} 56. Kc3 {[%clk 0:00:02]}  Kxg4 {[%clk 0:00:26]} 57. Rxb2 {[%clk 0:00:01]}  Rh7 {[%clk 0:00:25]} 58. Rh2 {[%clk 0:00:01]}  Kf3 {[%clk 0:00:25]} 59. Rh1 {[%clk 0:00:02]}  g4 {[%clk 0:00:25]} 60. Kd2 {[%clk 0:00:03]}  g3 {[%clk 0:00:25]} 61. Rh5 {[%clk 0:00:03]}  g2 {[%clk 0:00:25]} 62. Rf5+ {[%clk 0:00:04]}  Kg4 {[%clk 0:00:25]} 63. Rf8 {[%clk 0:00:04]}  Rxh6 {[%clk 0:00:24]} 64. Rg8+ {[%clk 0:00:05]}  Kf3 {[%clk 0:00:24]} 65. Kd3 {[%clk 0:00:04]}  Rd6+ {[%clk 0:00:23]} 66. Kc4 {[%clk 0:00:04]}  Kf2 {[%clk 0:00:18]} 67. Rf8+ {[%clk 0:00:04]}  Kg1 {[%clk 0:00:18]} 68. Rg8 {[%clk 0:00:04]}  Rf6 {[%clk 0:00:18]} 69. Kd3 {[%clk 0:00:04]}  Kf1 {[%clk 0:00:18]} 0-1


[Site "https://www.chess.com"]

[Event "Late Titled Tuesday Blitz February 8 2022"]
[White "Djordjevic, Dejan N"]
[Black "Novikov, Evgenij"]
[WhiteFideId "913316"]
[BlackFideId "4125380"]
[WhiteElo "2262"]
[BlackElo "2242"]
[Result "0-1"]
[Round "02"]
[TimeControl "180+1"]
[Date "2022.02.09"]
[WhiteClock "0:00:01"]
[BlackClock "0:00:09"]

1. e4 {[%clk 0:01:13]}  e5 {[%clk 0:02:58]} 2. Nf3 {[%clk 0:01:13]}  Nf6 {[%clk 0:02:56]} 3. Nxe5 {[%clk 0:01:12]}  Nc6 {[%clk 0:02:56]} 4. Nxc6 {[%clk 0:01:12]}  dxc6 {[%clk 0:02:57]} 5. d3 {[%clk 0:01:13]}  Bc5 {[%clk 0:02:57]} 6. Be2 {[%clk 0:01:13]}  h5 {[%clk 0:02:26]} 7. c3 {[%clk 0:01:12]}  Ng4 {[%clk 0:02:06]} 8. d4 {[%clk 0:01:07]}  Bd6 {[%clk 0:01:56]} 9. e5 {[%clk 0:00:56]}  Be7 {[%clk 0:01:51]} 10. h3 {[%clk 0:00:55]}  Nh6 {[%clk 0:01:48]} 11. Nd2 {[%clk 0:00:53]}  h4 {[%clk 0:01:46]} 12. Nf3 {[%clk 0:00:52]}  Be6 {[%clk 0:01:41]} 13. b3 {[%clk 0:00:50]}  a5 {[%clk 0:01:39]} 14. Be3 {[%clk 0:00:47]}  Nf5 {[%clk 0:01:38]} 15. Qd2 {[%clk 0:00:46]}  a4 {[%clk 0:01:37]} 16. b4 {[%clk 0:00:41]}  f6 {[%clk 0:01:25]} 17. exf6 {[%clk 0:00:39]}  Bxf6 {[%clk 0:01:26]} 18. Bg5 {[%clk 0:00:38]}  Qd5 {[%clk 0:01:13]} 19. Bxf6 {[%clk 0:00:25]}  gxf6 {[%clk 0:01:14]} 20. Qf4 {[%clk 0:00:21]}  O-O-O {[%clk 0:01:12]} 21. O-O {[%clk 0:00:18]}  Rhg8 {[%clk 0:01:11]} 22. Kh2 {[%clk 0:00:18]}  Rg7 {[%clk 0:01:02]} 23. Rg1 {[%clk 0:00:18]}  Rdg8 {[%clk 0:01:03]} 24. c4 {[%clk 0:00:18]}  Qd7 {[%clk 0:01:01]} 25. a3 {[%clk 0:00:17]}  Bf7 {[%clk 0:00:36]} 26. Rad1 {[%clk 0:00:16]}  Bh5 {[%clk 0:00:36]} 27. d5 {[%clk 0:00:16]}  Nd6 {[%clk 0:00:27]} 28. c5 {[%clk 0:00:15]}  Ne8 {[%clk 0:00:20]} 29. dxc6 {[%clk 0:00:14]}  Qxc6 {[%clk 0:00:21]} 30. Qf5+ {[%clk 0:00:14]}  Kb8 {[%clk 0:00:21]} 31. Qxh5 {[%clk 0:00:14]}  Qe4 {[%clk 0:00:15]} 32. Ne1 {[%clk 0:00:09]}  Rg5 {[%clk 0:00:09]} 33. Qf3 {[%clk 0:00:08]}  Qe5+ {[%clk 0:00:10]} 34. Kh1 {[%clk 0:00:07]}  Ng7 {[%clk 0:00:11]} 35. Qe3 {[%clk 0:00:06]}  Qf5 {[%clk 0:00:09]} 36. Bg4 {[%clk 0:00:06]}  Qg6 {[%clk 0:00:08]} 37. c6 {[%clk 0:00:06]}  b6 {[%clk 0:00:07]} 38. Qd3 {[%clk 0:00:04]}  Qxd3 {[%clk 0:00:07]} 39. Rxd3 {[%clk 0:00:03]}  f5 {[%clk 0:00:08]} 40. Bf3 {[%clk 0:00:03]}  Ne6 {[%clk 0:00:08]} 41. Nc2 {[%clk 0:00:04]}  Nf4 {[%clk 0:00:09]} 42. Re3 {[%clk 0:00:03]}  Nxh3 {[%clk 0:00:09]} 43. Rd1 {[%clk 0:00:03]}  Nxf2+ {[%clk 0:00:09]} 44. Kh2 {[%clk 0:00:03]}  Nxd1 {[%clk 0:00:10]} 45. Bxd1 {[%clk 0:00:03]}  Rxg2+ {[%clk 0:00:10]} 46. Kh3 {[%clk 0:00:03]}  Rg1 {[%clk 0:00:10]} 47. Be2 {[%clk 0:00:02]}  R8g3+ {[%clk 0:00:09]} 48. Kxh4 {[%clk 0:00:02]}  Rxe3 {[%clk 0:00:09]} 49. Nxe3 {[%clk 0:00:01]}  Re1 {[%clk 0:00:09]} 50. Nxf5 {[%clk 0:00:01]}  Rxe2 {[%clk 0:00:09]} 51. Nd4 {[%clk 0:00:01]}  Re4+ {[%clk 0:00:09]} 0-1


[Site "https://www.chess.com"]

[Event "Late Titled Tuesday Blitz February 8 2022"]
[White "Einarsson, Halldor Gretar"]
[Black "Morris-Suzuki, Sophie"]
[WhiteFideId "2300150"]
[BlackFideId "30922615"]
[WhiteElo "2114"]
[BlackElo "2466"]
[Result "1-0"]
[Round "02"]
[TimeControl "180+1"]
[Date "2022.02.09"]
[WhiteClock "0:00:01"]
[BlackClock "0:00:04"]

1. d4 {[%clk 0:03:00]}  d5 {[%clk 0:03:00]} 2. Nf3 {[%clk 0:02:59]}  e6 {[%clk 0:03:00]} 3. c4 {[%clk 0:02:57]}  Nf6 {[%clk 0:03:00]} 4. g3 {[%clk 0:02:57]}  Be7 {[%clk 0:02:59]} 5. Bg2 {[%clk 0:02:56]}  O-O {[%clk 0:03:00]} 6. O-O {[%clk 0:02:56]}  dxc4 {[%clk 0:02:59]} 7. Ne5 {[%clk 0:02:56]}  Nc6 {[%clk 0:02:59]} 8. Nxc6 {[%clk 0:02:56]}  bxc6 {[%clk 0:03:00]} 9. Na3 {[%clk 0:02:55]}  Bxa3 {[%clk 0:02:59]} 10. bxa3 {[%clk 0:02:55]}  Ba6 {[%clk 0:03:00]} 11. Qd2 {[%clk 0:02:51]}  Rb8 {[%clk 0:02:57]} 12. Qa5 {[%clk 0:02:46]}  Rb6 {[%clk 0:02:56]} 13. a4 {[%clk 0:02:37]}  Qe7 {[%clk 0:02:52]} 14. Bf4 {[%clk 0:01:54]}  Rfb8 {[%clk 0:02:09]} 15. Qc5 {[%clk 0:01:29]}  Qd7 {[%clk 0:01:44]} 16. Bd2 {[%clk 0:01:08]}  Nd5 {[%clk 0:01:20]} 17. Ba5 {[%clk 0:01:06]}  Rb2 {[%clk 0:00:31]} 18. e4 {[%clk 0:01:03]}  Nb6 {[%clk 0:00:23]} 19. e5 {[%clk 0:00:44]}  Bb7 {[%clk 0:00:07]} 20. Bc3 {[%clk 0:00:31]}  Nxa4 {[%clk 0:00:04]} 21. Qa3 {[%clk 0:00:29]}  Nxc3 {[%clk 0:00:04]} 22. Qxb2 {[%clk 0:00:29]}  Nb5 {[%clk 0:00:04]} 23. a4 {[%clk 0:00:28]}  Nxd4 {[%clk 0:00:03]} 24. Rfd1 {[%clk 0:00:26]}  c5 {[%clk 0:00:03]} 25. Bxb7 {[%clk 0:00:26]}  c6 {[%clk 0:00:02]} 26. Rab1 {[%clk 0:00:25]}  Qc7 {[%clk 0:00:02]} 27. Rxd4 {[%clk 0:00:22]}  cxd4 {[%clk 0:00:02]} 28. Qxd4 {[%clk 0:00:22]}  h6 {[%clk 0:00:02]} 29. Qd6 {[%clk 0:00:15]}  Rxb7 {[%clk 0:00:01]} 30. Qxc7 {[%clk 0:00:12]}  Rxc7 {[%clk 0:00:02]} 31. Rc1 {[%clk 0:00:12]}  c5 {[%clk 0:00:02]} 32. Rxc4 {[%clk 0:00:12]}  Kf8 {[%clk 0:00:02]} 33. f4 {[%clk 0:00:10]}  Ke7 {[%clk 0:00:03]} 34. Kf2 {[%clk 0:00:11]}  Kd7 {[%clk 0:00:04]} 35. Ke3 {[%clk 0:00:11]}  Kc6 {[%clk 0:00:05]} 36. Kd3 {[%clk 0:00:11]}  Kd5 {[%clk 0:00:05]} 37. Kc3 {[%clk 0:00:11]}  Rb7 {[%clk 0:00:06]} 38. a5 {[%clk 0:00:10]}  Rb5 {[%clk 0:00:06]} 39. Ra4 {[%clk 0:00:10]}  a6 {[%clk 0:00:05]} 40. Ra2 {[%clk 0:00:09]}  Kc6 {[%clk 0:00:05]} 41. Kc4 {[%clk 0:00:07]}  Rb4+ {[%clk 0:00:06]} 42. Kc3 {[%clk 0:00:08]}  Kb5 {[%clk 0:00:07]} 43. Rd2 {[%clk 0:00:08]}  Kxa5 {[%clk 0:00:06]} 44. Rd7 {[%clk 0:00:07]}  Re4 {[%clk 0:00:05]} 45. Rxf7 {[%clk 0:00:07]}  Re2 {[%clk 0:00:05]} 46. Re7 {[%clk 0:00:07]}  Rxh2 {[%clk 0:00:05]} 47. Rxe6 {[%clk 0:00:07]}  Rg2 {[%clk 0:00:05]} 48. Rg6 {[%clk 0:00:08]}  Kb5 {[%clk 0:00:05]} 49. Kd3 {[%clk 0:00:08]}  c4+ {[%clk 0:00:04]} 50. Ke3 {[%clk 0:00:07]}  c3 {[%clk 0:00:04]} 51. e6 {[%clk 0:00:07]}  Rd2 {[%clk 0:00:04]} 52. Rxg7 {[%clk 0:00:06]}  Rd6 {[%clk 0:00:04]} 53. f5 {[%clk 0:00:05]}  c2 {[%clk 0:00:04]} 54. Rc7 {[%clk 0:00:04]}  Rc6 {[%clk 0:00:04]} 55. Rxc6 {[%clk 0:00:05]}  Kxc6 {[%clk 0:00:04]} 56. Kd2 {[%clk 0:00:05]}  Kd6 {[%clk 0:00:04]} 57. Kxc2 {[%clk 0:00:04]}  Ke7 {[%clk 0:00:04]} 58. g4 {[%clk 0:00:04]}  Kf6 {[%clk 0:00:04]} 59. Kb3 {[%clk 0:00:04]}  h5 {[%clk 0:00:03]} 60. gxh5 {[%clk 0:00:04]}  a5 {[%clk 0:00:03]} 61. Ka4 {[%clk 0:00:03]}  Kxf5 {[%clk 0:00:04]} 62. e7 {[%clk 0:00:02]}  Kg5 {[%clk 0:00:04]} 63. e8=Q {[%clk 0:00:01]}  Kh6 {[%clk 0:00:04]} 64. Qg6# {[%clk 0:00:01]} 1-0


[Site "https://www.chess.com"]

[Event "Late Titled Tuesday Blitz February 8 2022"]
[White "Garagulya, Konstantin"]
[Black "Yeletsky, Ivan"]
[WhiteFideId "4128931"]
[BlackFideId "24180327"]
[WhiteElo "2329"]
[BlackElo "2348"]
[Result "1-0"]
[Round "02"]
[TimeControl "180+1"]
[Date "2022.02.09"]
[WhiteClock "0:01:03"]
[BlackClock "0:02:27"]

1. d4 {[%clk 0:02:59]}  Nf6 {[%clk 0:02:58]} 2. Nf3 {[%clk 0:03:00]}  Nc6 {[%clk 0:02:58]} 3. Bf4 {[%clk 0:02:58]}  e6 {[%clk 0:02:58]} 4. Nbd2 {[%clk 0:02:58]}  d5 {[%clk 0:02:55]} 5. h3 {[%clk 0:02:58]}  Bd6 {[%clk 0:02:55]} 6. e3 {[%clk 0:02:55]}  Bxf4 {[%clk 0:02:53]} 7. exf4 {[%clk 0:02:56]}  Qd6 {[%clk 0:02:53]} 8. g3 {[%clk 0:02:56]}  Qb4 {[%clk 0:02:53]} 9. c4 {[%clk 0:01:45]}  dxc4 {[%clk 0:02:39]} 10. Bxc4 {[%clk 0:01:43]}  Qxb2 {[%clk 0:02:36]} 11. Rb1 {[%clk 0:01:41]}  Qa3 {[%clk 0:02:36]} 12. Ne5 {[%clk 0:01:26]}  Nxd4 {[%clk 0:02:30]} 13. O-O {[%clk 0:01:22]}  O-O {[%clk 0:02:30]} 14. Nb3 {[%clk 0:01:15]}  Nf5 {[%clk 0:02:27]} 15. Qc2 {[%clk 0:01:03]} 1-0


[Site "https://www.chess.com"]